fUST/lending_fUST_20250227
["ID","MTS","AMOUNT","RATE_DAILY","PERIOD"]
[354668583,1740610042731,-4403.62611519,0.00041126,120]
[354668584,1740610042758,-1406.52134986,0.0004137,28]
[354668585,1740610042783,-601.3701822,0.00041452,9]
[354668586,1740610042811,-601.3701822,0.0004359,9]
[354668587,1740610042833,-2115.05756356,0.000438,7]
[354668588,1740610042857,-1406.52134986,0.00044277,28]
[354668589,1740610042881,-151.0,0.00045,120]
[354668590,1740610042904,-10017.40369732,0.00045183,90]
[354668591,1740610042932,-601.3701822,0.00045728,10]
[354668592,1740610042958,-10000.0,0.00045765,120]
[354668593,1740610042984,-4403.62611519,0.0004654,120]
[354668594,1740610043010,-1406.52134986,0.00047185,28]
[354668595,1740610043034,-185.68,0.0004781,30]
[354668596,1740610043058,-10000.0,0.0004782,60]
[354668597,1740610043081,-601.3701822,0.00047866,11]
[354668598,1740610043104,-222.81,0.0004879,30]
[354668599,1740610043128,-8497.47820767,0.000488,120]
[354668600,1740610051106,-3959.6679058,0.000488,120]
[354668601,1740610051299,-2281.49588509,0.000488,120]
[354668602,1740610054087,-302.35564113,0.000488,120]
[354668603,1740610152134,-956.554415,0.00040499,2]
[354668604,1740610152155,-1749.00559947,0.000467,2]
[354668605,1740610152177,-4543.41481391,0.000488,120]
[354668606,1740610152198,-615.09217515,0.000489,120]
[354668607,1740610156120,-7726.87294994,0.000489,120]
[354668608,1740610157109,-2602.15965755,0.000489,120]
[354668609,1740610158086,-2743.21513313,0.000489,120]
[354668610,1740610158108,-351.6303375,0.000489,28]
[354668611,1740610158130,-154.73,0.0004899,30]
[354668612,1740610158151,-773.68,0.0004899,30]
[354668613,1740610158174,-28201.07,0.00048999,120]
[354668614,1740610158196,-1332.72780143,0.00049,120]
[354668615,1740610158217,-6987.8925851,0.00049,8]
[354668616,1740610169113,-441.00480028,0.000489,11]
[354668617,1740610169133,-5588.70048808,0.00049,8]
[354668618,1740610172320,-47423.40692682,0.00049,8]
[354668619,1740610172344,-660.877,0.00049,85]
[354668620,1740610172367,-105415.0,0.00049,30]
[354668621,1740610172390,-205.40600667,0.00049214,2]
[354668622,1740610172412,-205.40600665,0.00049283,2]
[354668623,1740610172434,-500.0,0.000493,2]
[354668624,1740610172457,-202.08113274,0.00049305,4]
[354668625,1740610172479,-304.35009125,0.00049314,120]
[354668626,1740610172500,-500.0,0.00049314,31]
[354668627,1740610172522,-562.30853477,0.00049314,31]
[354668628,1740610172544,-500.0,0.00049314,120]
[354668629,1740610172565,-186.48527823,0.00049314,120]
[354668630,1740610172589,-500.0,0.00049314,120]
[354668631,1740610172611,-256.34949065,0.00049314,120]
[354668632,1740610172632,-217.66778303,0.00049314,120]
[354668633,1740610172654,-500.0,0.00049314,120]
[354668634,1740610172675,-615.70772196,0.00049314,31]
[354668635,1740610172698,-500.0,0.00049314,120]
[354668636,1740610172720,-500.0,0.00049314,120]
[354668637,1740610172742,-519.7315827,0.00049314,120]
[354668638,1740610172763,-501.44079961,0.00049315,120]
[354668639,1740610172784,-500.0,0.00049315,120]
[354668640,1740610172806,-414.37904405,0.00049315,120]
[354668641,1740610172827,-355.16475095,0.00049315,120]
[354668642,1740610172851,-500.0,0.00049315,120]
[354668643,1740610172875,-537.00279411,0.00049315,120]
[354668644,1740610172896,-561.90595037,0.00049315,120]
[354668645,1740610172918,-500.0,0.00049315,120]
[354668646,1740610172939,-2043.47,0.00049315,120]
[354668647,1740610172960,-500.0,0.00049315,120]
[354668648,1740610172980,-500.0,0.00049315,120]
[354668649,1740610173002,-500.0,0.00049315,120]
[354668650,1740610173028,-500.0,0.00049315,120]
[354668651,1740610173050,-500.0,0.00049315,120]
[354668652,1740610173072,-506.74997958,0.00049315,120]
[354668653,1740610173094,-621.79719613,0.00049315,120]
[354668654,1740610173116,-500.0,0.00049315,30]
[354668655,1740610173138,-476.46749049,0.00049315,120]
[354668656,1740610173160,-500.0,0.00049315,120]
[354668657,1740610173183,-500.0,0.00049315,120]
[354668658,1740610173205,-500.0,0.00049315,120]
[354668659,1740610173227,-1105.98,0.00049315,120]
[354668660,1740610173251,-579.38244099,0.00049315,120]
[354668661,1740610173274,-500.0,0.00049315,120]
[354668662,1740610173297,-505.82746448,0.00049315,120]
[354668663,1740610173320,-507.95836277,0.00049315,120]
[354668664,1740610173343,-500.0,0.00049315,120]
[354668665,1740610173365,-500.0,0.00049315,120]
[354668666,1740610173388,-500.0,0.00049315,120]
[354668667,1740610173410,-513.78827645,0.00049315,120]
[354668668,1740610173432,-500.0,0.00049315,120]
[354668669,1740610173454,-687.43,0.00049315,120]
[354668670,1740610173476,-596.827152,0.00049315,120]
[354668671,1740610173499,-500.0,0.00049315,120]
[354668672,1740610173521,-500.0,0.00049315,120]
[354668673,1740610173543,-500.0,0.00049315,120]
[354668674,1740610173564,-500.0,0.00049315,120]
[354668675,1740610173586,-500.0,0.00049315,120]
[354668676,1740610173608,-500.0,0.00049315,120]
[354668677,1740610173629,-500.95597778,0.00049315,15]
[354668678,1740610173651,-500.0,0.00049315,120]
[354668679,1740610173673,-500.0,0.00049315,120]
[354668680,1740610173695,-707.61,0.00049315,120]
[354668681,1740610173718,-939.91,0.00049315,120]
[354668682,1740610173739,-1315.54,0.00049315,120]
[354668683,1740610173762,-500.0,0.00049315,120]
[354668684,1740610173784,-3165.87,0.00049315,120]
[354668685,1740610173807,-500.0,0.00049315,120]
[354668686,1740610173830,-500.0,0.00049315,120]
[354668687,1740610173858,-500.0,0.00049315,120]
[354668688,1740610173882,-636.37,0.00049315,120]
[354668689,1740610173906,-2417.47,0.00049315,120]
[354668690,1740610173931,-500.0,0.00049315,120]
[354668691,1740610174046,-500.0,0.00049315,120]
[354668692,1740610174070,-500.0,0.00049315,120]
[354668693,1740610174092,-1149.85,0.00049315,120]
[354668694,1740610174114,-1000.0,0.00049315,5]
[354668695,1740610174138,-500.0,0.00049315,120]
[354668696,1740610174161,-1481.65,0.00049315,120]
[354668697,1740610174185,-500.0,0.00049315,120]
[354668698,1740610174208,-500.0,0.00049315,120]
[354668699,1740610174231,-500.0,0.00049315,120]
[354668700,1740610174256,-500.0,0.00049315,120]
[354668701,1740610174281,-500.0,0.00049315,120]
[354668702,1740610174304,-500.0,0.00049315,120]
[354668703,1740610174328,-500.0,0.00049315,120]
[354668704,1740610174351,-500.0,0.00049315,120]
[354668705,1740610174374,-500.0,0.00049315,120]
[354668706,1740610174397,-500.0,0.00049315,120]
[354668707,1740610174420,-500.0,0.00049315,120]
[354668708,1740610174442,-500.0,0.00049315,120]
[354668709,1740610174465,-500.0,0.00049315,120]
[354668710,1740610174489,-500.0,0.00049315,120]
[354668711,1740610174512,-386.32017017,0.00049315,120]
[354668712,1740610174535,-500.0,0.00049315,120]
[354668713,1740610174558,-2741.45,0.00049315,120]
[354668714,1740610174580,-1604.56,0.00049315,120]
[354668715,1740610174606,-889.09,0.00049315,120]
[354668716,1740610174629,-2311.39,0.00049315,120]
[354668717,1740610174651,-500.0,0.00049315,120]
[354668718,1740610174673,-500.0,0.00049315,120]
[354668719,1740610174696,-2111.39,0.00049315,120]
[354668720,1740610174719,-500.0,0.00049315,120]
[354668721,1740610174741,-2294.98,0.00049315,120]
[354668722,1740610174764,-984.81,0.00049315,120]
[354668723,1740610174786,-500.0,0.00049315,120]
[354668724,1740610174808,-960.89,0.00049315,120]
[354668725,1740610174830,-500.0,0.00049315,120]
[354668726,1740610174857,-500.0,0.00049315,30]
[354668727,1740610174881,-1857.49,0.00049315,120]
[354668728,1740610174904,-2182.19,0.00049315,120]
[354668729,1740610174931,-500.0,0.00049315,120]
[354668730,1740610174954,-611.76,0.00049315,30]
[354668731,1740610174975,-500.0,0.00049315,120]
[354668732,1740610174998,-500.0,0.00049315,120]
[354668733,1740610175019,-500.0,0.00049315,120]
[354668734,1740610175041,-500.0,0.00049315,120]
[354668735,1740610175064,-11046.33,0.00049315,120]
[354668736,1740610175086,-500.0,0.00049315,120]
[354668737,1740610175108,-2020.64,0.00049315,120]
[354668738,1740610175131,-3014.32,0.00049315,120]
[354668739,1740610175153,-1172.56,0.00049315,120]
[354668740,1740610175175,-500.0,0.00049315,120]
[354668741,1740610175197,-6768.8,0.00049315,120]
[354668742,1740610175218,-500.0,0.00049315,120]
[354668743,1740610175240,-1583.37,0.00049315,120]
[354668744,1740610175262,-500.0,0.00049315,120]
[354668745,1740610175284,-2141.8,0.00049315,120]
[354668746,1740610175306,-3012.21,0.00049315,120]
[354668747,1740610175330,-500.0,0.00049315,120]
[354668748,1740610175353,-1075.67,0.00049315,120]
[354668749,1740610175376,-500.0,0.00049315,120]
[354668750,1740610175399,-2107.58,0.00049315,120]
[354668751,1740610175421,-1676.64,0.00049315,120]
[354668752,1740610175444,-2598.42,0.00049315,120]
[354668753,1740610175466,-851.41,0.00049315,120]
[354668754,1740610175487,-500.0,0.00049315,120]
[354668755,1740610175510,-500.0,0.00049315,120]
[354668756,1740610175531,-500.0,0.00049315,120]
[354668757,1740610175554,-500.0,0.00049315,120]
[354668758,1740610175576,-699.84,0.00049315,120]
[354668759,1740610175599,-459.8096676,0.00049315,120]
[354668760,1740610175622,-2166.35,0.00049315,120]
[354668761,1740610175740,-2166.35,0.00049315,120]
[354668762,1740610175762,-500.0,0.00049315,120]
[354668763,1740610175785,-2166.35,0.00049315,120]
[354668764,1740610175808,-2166.35,0.00049315,120]
[354668765,1740610175833,-2166.35,0.00049315,120]
[354668766,1740610175859,-2166.35,0.00049315,120]
[354668767,1740610175883,-2166.35,0.00049315,120]
[354668768,1740610175906,-2166.35,0.00049315,120]
[354668769,1740610175932,-500.0,0.00049315,120]
[354668770,1740610175955,-2166.35,0.00049315,120]
[354668771,1740610175979,-2166.35,0.00049315,120]
[354668772,1740610176002,-2166.35,0.00049315,120]
[354668773,1740610176027,-2166.35,0.00049315,120]
[354668774,1740610176050,-2166.35,0.00049315,120]
[354668775,1740610176074,-8514.67,0.00049315,120]
[354668776,1740610176097,-2166.35,0.00049315,120]
[354668777,1740610176120,-2155.2,0.00049315,120]
[354668778,1740610176143,-2166.35,0.00049315,120]
[354668779,1740610176166,-947.52,0.00049315,120]
[354668780,1740610176190,-2166.35,0.00049315,120]
[354668781,1740610176215,-2166.35,0.00049315,120]
[354668782,1740610176238,-2166.35,0.00049315,120]
[354668783,1740610176261,-2166.35,0.00049315,120]
[354668784,1740610176284,-2166.35,0.00049315,120]
[354668785,1740610176308,-2166.35,0.00049315,120]
[354668786,1740610176332,-2166.35,0.00049315,120]
[354668787,1740610176356,-2166.35,0.00049315,120]
[354668788,1740610176379,-2166.3712696,0.00049315,120]
[354668789,1740610176401,-1150.91,0.00049315,120]
[354668790,1740610176424,-500.0,0.00049315,120]
[354668791,1740610176447,-500.0,0.00049315,120]
[354668792,1740610176468,-500.0,0.00049315,120]
[354668793,1740610176490,-500.0,0.00049315,120]
[354668794,1740610176513,-3307.45,0.00049315,120]
[354668795,1740610176534,-500.0,0.00049315,120]
[354668796,1740610176555,-500.0,0.00049315,120]
[354668797,1740610176577,-2645.85,0.00049315,120]
[354668798,1740610176599,-612.01130235,0.00049315,120]
[354668799,1740610176621,-3469.99,0.00049315,120]
[354668800,1740610176642,-500.0,0.00049315,120]
[354668801,1740610176664,-500.0,0.00049315,120]
[354668802,1740610176687,-500.0,0.00049315,120]
[354668803,1740610176710,-946.24,0.00049315,120]
[354668804,1740610176732,-500.0,0.00049315,120]
[354668805,1740610176754,-500.0,0.00049315,120]
[354668806,1740610176777,-1725.94,0.00049315,120]
[354668807,1740610176800,-500.0,0.00049315,120]
[354668808,1740610176822,-760.83,0.00049315,120]
[354668809,1740610176847,-500.0,0.00049315,120]
[354668810,1740610176870,-21510.52,0.00049315,120]
[354668811,1740610176893,-1149.61,0.00049315,120]
[354668812,1740610176917,-500.0,0.00049315,120]
[354668813,1740610176939,-500.0,0.00049315,120]
[354668814,1740610176960,-500.0,0.00049315,120]
[354668815,1740610176981,-500.0,0.00049315,120]
[354668816,1740610177003,-500.0,0.00049315,120]
[354668817,1740610177024,-500.0,0.00049315,120]
[354668818,1740610177046,-500.0,0.00049315,120]
[354668819,1740610177067,-500.0,0.00049315,120]
[354668820,1740610177089,-500.0,0.00049315,120]
[354668821,1740610177110,-500.0,0.00049315,120]
[354668822,1740610177132,-2065.95,0.00049315,120]
[354668823,1740610177156,-834.81,0.00049315,120]
[354668824,1740610177181,-834.81,0.00049315,120]
[354668825,1740610177209,-1121.81,0.00049315,120]
[354668826,1740610177234,-834.81,0.00049315,120]
[354668827,1740610177259,-834.81,0.00049315,120]
[354668828,1740610177282,-834.81,0.00049315,120]
[354668829,1740610177394,-834.81,0.00049315,120]
[354668830,1740610177418,-834.81,0.00049315,120]
[354668831,1740610177441,-834.81,0.00049315,120]
[354668832,1740610177464,-515.1832253,0.00049315,120]
[354668833,1740610177488,-834.81,0.00049315,120]
[354668834,1740610177511,-834.81,0.00049315,120]
[354668835,1740610177534,-834.81,0.00049315,120]
[354668836,1740610177556,-500.0,0.00049315,120]
[354668837,1740610177578,-575.01,0.00049315,120]
[354668838,1740610177605,-834.81,0.00049315,120]
[354668839,1740610177629,-834.81,0.00049315,120]
[354668840,1740610177652,-834.81,0.00049315,120]
[354668841,1740610177674,-500.0,0.00049315,120]
[354668842,1740610177697,-834.81,0.00049315,120]
[354668843,1740610177720,-1848.72,0.00049315,120]
[354668844,1740610177745,-834.81,0.00049315,120]
[354668845,1740610177768,-834.81,0.00049315,120]
[354668846,1740610177790,-500.0,0.00049315,120]
[354668847,1740610177812,-650.73,0.00049315,120]
[354668848,1740610177837,-834.81,0.00049315,120]
[354668849,1740610177862,-500.0,0.00049315,120]
[354668850,1740610177886,-834.81,0.00049315,120]
[354668851,1740610177910,-834.81,0.00049315,120]
[354668852,1740610177934,-834.81,0.00049315,120]
[354668853,1740610177956,-834.81,0.00049315,120]
[354668854,1740610177979,-834.81,0.00049315,120]
[354668855,1740610178001,-834.98776677,0.00049315,120]
[354668856,1740610178023,-976.88,0.00049315,120]
[354668857,1740610178046,-500.0,0.00049315,120]
[354668858,1740610178068,-42024.45,0.00049315,6]
[354668859,1740610178089,-500.0,0.00049315,120]
[354668860,1740610178113,-500.0,0.00049315,120]
[354668861,1740610178135,-500.0,0.00049315,120]
[354668862,1740610178157,-19607.61712864,0.00049315,3]
[354668863,1740610178180,-19607.61712864,0.00049315,7]
[354668864,1740610178202,-4319.47,0.00049315,120]
[354668865,1740610178225,-500.0,0.00049315,120]
[354668866,1740610178249,-500.0,0.00049315,120]
[354668867,1740610178272,-2011.05,0.00049315,120]
[354668868,1740610178294,-500.0,0.00049315,120]
[354668869,1740610178317,-1045.69,0.00049315,120]
[354668870,1740610178339,-500.0,0.00049315,120]
[354668871,1740610178362,-500.0,0.00049315,120]
[354668872,1740610178384,-500.0,0.00049315,120]
[354668873,1740610178407,-8120.89,0.00049315,120]
[354668874,1740610178429,-500.0,0.00049315,120]
[354668875,1740610178451,-500.0,0.00049315,120]
[354668876,1740610178473,-500.0,0.00049315,120]
[354668877,1740610178495,-500.0,0.00049315,120]
[354668878,1740610178519,-500.0,0.00049315,120]
[354668879,1740610178540,-500.0,0.00049315,120]
[354668880,1740610178563,-978.77,0.00049315,120]
[354668881,1740610178585,-4406.17,0.00049315,120]
[354668882,1740610178607,-14088.59,0.00049315,120]
[354668883,1740610178630,-374.49887522,0.00049315,120]
[354668884,1740610178653,-500.0,0.00049315,120]
[354668885,1740610178676,-1452.98,0.00049315,120]
[354668886,1740610178699,-628.41,0.00049315,120]
[354668887,1740610178721,-1000.0,0.00049315,120]
[354668888,1740610178743,-500.0,0.00049315,120]
[354668889,1740610178768,-500.0,0.00049315,120]
[354668890,1740610178790,-500.0,0.00049315,120]
[354668891,1740610178813,-500.0,0.00049315,120]
[354668892,1740610178838,-3474.07,0.00049315,120]
[354668893,1740610178944,-500.0,0.00049315,120]
[354668894,1740610178968,-500.0,0.00049315,120]
[354668895,1740610178992,-725.68,0.00049315,120]
[354668896,1740610179017,-500.0,0.00049315,120]
[354668897,1740610179040,-500.0,0.00049315,120]
[354668898,1740610179062,-500.0,0.00049315,120]
[354668899,1740610179084,-2064.74,0.00049315,120]
[354668900,1740610179105,-589.49,0.00049315,120]
[354668901,1740610179127,-355.00658866,0.00049315,120]
[354668902,1740610179151,-1121.89,0.00049315,120]
[354668903,1740610179176,-500.0,0.00049315,120]
[354668904,1740610179198,-500.0,0.00049315,120]
[354668905,1740610179221,-500.0,0.00049315,120]
[354668906,1740610179247,-500.0,0.00049315,120]
[354668907,1740610179271,-500.0,0.00049315,120]
[354668908,1740610179294,-507.7209542,0.00049315,120]
[354668909,1740610179318,-21662.01,0.00049315,120]
[354668910,1740610179340,-500.0,0.00049315,120]
[354668911,1740610179362,-1047.61,0.00049315,120]
[354668912,1740610179384,-504.9395046,0.00049315,120]
[354668913,1740610179407,-411.9993984,0.00049315,120]
[354668914,1740610179430,-500.0,0.00049315,45]
[354668915,1740610179450,-1153.26,0.00049315,120]
[354668916,1740610179472,-500.0,0.00049315,120]
[354668917,1740610179494,-500.0,0.00049315,120]
[354668918,1740610179517,-269.76098507,0.00049315,120]
[354668919,1740610179762,-230.23901493,0.00049315,120]
[354668920,1740610179786,-500.0,0.00049315,120]
[354668921,1740610179808,-5613.01,0.00049315,120]
[354668922,1740610179831,-500.0,0.00049315,120]
[354668923,1740610179856,-200.0,0.00049315,7]
[354668924,1740610179878,-500.99649548,0.00049315,120]
[354668925,1740610179899,-10954.1,0.00049315,120]
[354668926,1740610179920,-500.0,0.00049315,120]
[354668927,1740610179940,-500.0,0.00049315,120]
[354668928,1740610179961,-966.01,0.00049315,120]
[354668929,1740610180067,-500.0,0.00049315,120]
[354668930,1740610180091,-2650.90849688,0.00049315,120]
[354668947,1740610232672,-151.0,0.00045,120]
[354668948,1740610232682,-27310.45,0.00048998,120]
[354668949,1740610232696,-276.63373256,0.00049215,2]
[354668950,1740610232705,-276.63373252,0.00049284,2]
[354668951,1740610232714,-500.0,0.00049314,120]
[354668952,1740610232724,-500.0,0.00049314,2]
[354668953,1740610232733,-500.0,0.00049314,120]
[354668955,1740610232742,-500.0,0.00049314,120]
[354668956,1740610232751,-500.0,0.00049314,120]
[354668957,1740610232761,-500.0,0.00049314,2]
[354668958,1740610232771,-500.0,0.00049314,120]
[354668959,1740610232781,-500.0,0.00049314,120]
[354668960,1740610232790,-500.0,0.00049314,2]
[354668961,1740610232799,-500.0,0.00049314,120]
[354668962,1740610232808,-500.0,0.00049314,120]
[354668963,1740610232818,-500.0,0.00049314,120]
[354668964,1740610232827,-500.0,0.00049314,2]
[354668965,1740610232836,-500.0,0.00049314,120]
[354668966,1740610232846,-500.0,0.00049314,120]
[354668967,1740610232855,-207.27645292,0.00049314,2]
[354668968,1740610232869,-500.0,0.00049314,120]
[354668969,1740610232878,-500.0,0.00049314,120]
[354668970,1740610232888,-500.0,0.00049314,120]
[354668971,1740610232899,-467.71557136,0.00049314,120]
[354668972,1740610232910,-500.0,0.00049314,120]
[354668973,1740610233049,-500.0,0.00049314,120]
[354668974,1740610233061,-591.46282409,0.00049314,120]
[354668975,1740610233071,-500.0,0.00049314,120]
[354668976,1740610233080,-500.0,0.00049314,120]
[354668977,1740610233090,-500.0,0.00049314,120]
[354668978,1740610233100,-500.0,0.00049314,120]
[354668979,1740610233110,-500.0,0.00049314,120]
[354668980,1740610233120,-500.0,0.00049314,120]
[354668981,1740610233129,-500.0,0.00049314,120]
[354668982,1740610233139,-1360.60150312,0.00049315,120]
[354668983,1740610233148,-501.88941912,0.00049315,120]
[354668984,1740610233158,-500.0,0.00049315,120]
[354668985,1740610233167,-500.0,0.00049315,120]
[354668986,1740610233177,-506.23186168,0.00049315,120]
[354668987,1740610233186,-1000.0,0.00049315,2]
[354668988,1740610233196,-34623.57,0.00049315,120]
[354668989,1740610233205,-905.29,0.00049315,120]
[354668990,1740610233215,-1583.71,0.00049315,120]
[354668991,1740610233224,-500.0,0.00049315,120]
[354668992,1740610233234,-9168.92,0.00049315,120]
[354668993,1740610233243,-500.0,0.00049315,120]
[354668994,1740610233252,-1709.78,0.00049315,120]
[354668995,1740610233262,-500.0,0.00049315,120]
[354668996,1740610233271,-7852.67,0.00049315,120]
[354668997,1740610233281,-500.0,0.00049315,120]
[354668998,1740610233290,-555.9,0.00049315,120]
[354668999,1740610233300,-3564.01,0.00049315,120]
[354669000,1740610233309,-1488.01,0.00049315,120]
[354669001,1740610233319,-500.0,0.00049315,120]
[354669002,1740610233329,-500.0,0.00049315,120]
[354669003,1740610233340,-1156.66,0.00049315,120]
[354669004,1740610233350,-708.34,0.00049315,120]
[354669005,1740610233359,-1868.82,0.00049315,120]
[354669006,1740610233369,-500.0,0.00049315,120]
[354669007,1740610233379,-500.0,0.00049315,120]
[354669008,1740610233390,-1201.96,0.00049315,120]
[354669009,1740610233399,-12452.52,0.00049315,3]
[354669010,1740610233409,-500.0,0.00049315,120]
[354669011,1740610233418,-500.0,0.00049315,120]
[354669012,1740610233428,-500.0,0.00049315,120]
[354669013,1740610233438,-1409.26,0.00049315,120]
[354669014,1740610233448,-500.0,0.00049315,120]
[354669015,1740610233457,-500.0,0.00049315,120]
[354669016,1740610233467,-500.0,0.00049315,120]
[354669017,1740610233477,-1574.71,0.00049315,120]
[354669018,1740610233486,-500.0,0.00049315,120]
[354669019,1740610233496,-500.0,0.00049315,120]
[354669020,1740610233506,-500.0,0.00049315,120]
[354669021,1740610233515,-505.63413773,0.00049315,120]
[354669022,1740610233525,-500.0,0.00049315,120]
[354669023,1740610233534,-132714.64,0.00049315,7]
[354669024,1740610233544,-360.8143272,0.00049315,120]
[354669025,1740610233554,-500.0,0.00049315,120]
[354669026,1740610233563,-917.25,0.00049315,120]
[354669027,1740610233573,-500.0,0.00049315,120]
[354669028,1740610233583,-500.0,0.00049315,120]
[354669029,1740610233592,-6552.34,0.00049315,120]
[354669030,1740610233602,-3092.72,0.00049315,120]
[354669031,1740610233611,-638.72,0.00049315,120]
[354669032,1740610233620,-873.31,0.00049315,120]
[354669033,1740610233630,-1159.76,0.00049315,120]
[354669034,1740610233639,-500.0,0.00049315,21]
[354669035,1740610233648,-500.0,0.00049315,120]
[354669036,1740610233657,-500.0,0.00049315,120]
[354669037,1740610233666,-500.0,0.00049315,120]
[354669038,1740610233675,-2052.56,0.00049315,120]
[354669039,1740610233685,-500.0,0.00049315,120]
[354669040,1740610233694,-501.07551732,0.00049315,120]
[354669041,1740610233704,-500.0,0.00049315,120]
[354669042,1740610233713,-729.13,0.00049315,120]
[354669043,1740610233722,-6486.77,0.00049315,120]
[354669044,1740610233732,-586.27,0.00049315,30]
[354669045,1740610233741,-500.0,0.00049315,120]
[354669046,1740610233751,-500.0,0.00049315,120]
[354669047,1740610233760,-500.0,0.00049315,120]
[354669048,1740610233770,-500.0,0.00049315,120]
[354669049,1740610233780,-1606.78,0.00049315,120]
[354669050,1740610233790,-500.0,0.00049315,120]
[354669051,1740610233800,-2907.54,0.00049315,120]
[354669052,1740610233810,-2535.61,0.00049315,120]
[354669053,1740610233820,-500.0,0.00049315,120]
[354669054,1740610233830,-1654.03,0.00049315,120]
[354669055,1740610233839,-1936.44,0.00049315,120]
[354669056,1740610233848,-500.0,0.00049315,120]
[354669057,1740610233860,-500.0,0.00049315,120]
[354669058,1740610233870,-500.0,0.00049315,120]
[354669059,1740610233879,-500.0,0.00049315,120]
[354669060,1740610233889,-670.68,0.00049315,120]
[354669061,1740610233899,-2019.76,0.00049315,120]
[354669062,1740610233911,-503.01930446,0.00049315,120]
[354669063,1740610233920,-741.75,0.00049315,120]
[354669064,1740610233930,-500.0,0.00049315,120]
[354669065,1740610233939,-500.0,0.00049315,120]
[354669066,1740610233949,-500.0,0.00049315,120]
[354669067,1740610233959,-500.0,0.00049315,120]
[354669068,1740610233968,-21228.94,0.00049315,120]
[354669069,1740610233977,-1225.4,0.00049315,120]
[354669070,1740610233987,-1102.95,0.00049315,120]
[354669071,1740610233997,-500.0,0.00049315,120]
[354669072,1740610234007,-237.06810459,0.00049315,120]
[354669073,1740610234024,-623.62,0.00049315,120]
[354669074,1740610234036,-500.0,0.00049315,120]
[354669075,1740610234047,-2062.52,0.00049315,120]
[354669076,1740610234057,-653.22,0.00049315,120]
[354669077,1740610234067,-2065.4,0.00049315,120]
[354669078,1740610234077,-1979.87,0.00049315,120]
[354669079,1740610234087,-500.0,0.00049315,120]
[354669080,1740610234098,-377.40473413,0.00049315,120]
[354669081,1740610234107,-276.63373252,0.00049352,2]
[354669082,1740610234118,-164.35798801,0.00049373,2]
[354669083,1740610234128,-202.88847706,0.00049373,10]
[354669084,1740610234138,-500.0,0.00049373,7]
[354669085,1740610234148,-500.0,0.00049373,10]
[354669086,1740610234158,-500.0,0.00049373,10]
[354669087,1740610234167,-537.36902736,0.00049373,10]
[354669088,1740610234177,-19607.61712864,0.00049373,10]
[354669089,1740610234187,-500.0,0.00049373,10]
[354669090,1740610234197,-500.0,0.00049373,10]
[354669091,1740610234208,-500.0,0.00049373,10]
[354669092,1740610234218,-500.0,0.00049373,10]
[354669093,1740610234228,-500.0,0.00049373,10]
[354669094,1740610234238,-500.0,0.00049373,10]
[354669095,1740610234248,-159.34773792,0.00049373,10]
[354669096,1740610234257,-500.0,0.00049373,10]
[354669097,1740610234268,-500.0,0.00049373,10]
[354669098,1740610234278,-472.04084199,0.00049373,10]
[354669099,1740610234287,-500.0,0.00049373,10]